[Event "CIS Master Groups 2024"]
[Site "Vasto"]
[Date "2024.04.10"]
[Round "4.5"]
[White "Sonis, Francesco"]
[Black "Chatalbashev, Boris"]
[Result "1-0"]
[ECO "A37"]
[WhiteElo "2562"]
[BlackElo "2451"]
[Annotator "TA"]
[PlyCount "175"]
[EventDate "2024.04.07"]
[EventType "team-tourn"]
[EventCountry "ITA"]
[SourceTitle "playchess.com"]
[Source "ChessBase"]
[SourceQuality "1"]
[TimeControl "40/5400+30:900+30"]

{[%evp 12,175,20,0,0,0,0,-7,0,-18,27,-63,-22,-66,-41,-37,-29,-48,-32,-54,-49,-51,-46,-86,-95,-88,-99,-111,-78,-90,-53,-70,-50,-54,-57,-52,-23,-27,-24,-35,-30,-33,-31,-22,-14,-21,-20,-35,47,35,35,4,8,0,0,0,0,-6,0,0,48,38,100,79,79,80,80,80,92,93,189,179,203,206,200,69,69,69,79,63,62,63,116,63,63,54,60,60,60,60,57,57,57,56,60,58,69,69,85,63,69,63,63,0,83,68,69,69,496,476,363,83,533,66,64,0,804,716,617,83,83,0,652,627,612,609,564,190,554,466,388,83,83,83,197,197,197,0,61,0,190,190,858,858,836,836,807,696,807,807,807,0,785,785,771,762,750,639,648,637,608,575,1036,893,839,720]} 1. c4 {[%emt 0:00:04]} c5 {[%emt 0:00:37]} 2. Nf3 {[%emt 0:00:07][%cal Bg1f3,Bf3d2,Bd2f1,Bf1e3,Be3d5][%mdl 32]} Nc6 {[%emt 0:00:05]} 3. Nc3 {[%emt 0:00:04]} e5 {[%emt 0:04:18]} 4. g3 {[%emt 0:00:05]} g6 {[%emt 0:00:27]} 5. Bg2 {[%emt 0:00:04]} Bg7 {[%emt 0:00:05]} 6. d3 {[%emt 0:00:02]} d6 {[%emt 0:01:57]} 7. Nd2 {[%emt 0:00:04]} Nge7 {[%emt 0:00:31]} 8. Nf1 {[%emt 0:00:03]} O-O {[%emt 0:00:48]} 9. Ne3 {[%emt 0:00:03]} a6 {[%emt 0:01:17] The position is equal.} 10. O-O {[%emt 0:09:57]} b5 {[%emt 0:02:59]} 11. f4 {[%emt 0:20:41]} (11. cxb5 $11 axb5 12. Nxb5) 11... Rb8 {[%emt 0:05:24]} 12. Ned5 {[%emt 0:13:30]} b4 {[%emt 0:11:05]} 13. Ne4 {[%emt 0:04:04]} f5 {[%emt 0:01:53]} 14. Nf2 {[%emt 0:00:10]} Kh8 {[%emt 0:09:26]} 15. a3 {[%emt 0:01:13]} bxa3 {[%emt 0:08:36]} 16. Rxa3 {[%emt 0:00:38]} Nxd5 {[%emt 0:00:16]} 17. Bxd5 {[%emt 0:01:43]} Nb4 {[%emt 0:00:49]} 18. Bg2 {[%emt 0:00:04]} exf4 {[%emt 0:01:49]} 19. gxf4 {[%emt 0:00:18]} Be6 {[%emt 0:00:47]} 20. b3 {[%emt 0:05:24]} d5 {[%emt 0:03:22]} 21. e3 {[%emt 0:02:19]} d4 {[%emt 0:05:39]} 22. e4 {[%emt 0:03:36]} fxe4 {[%emt 0:00:05]} 23. Nxe4 {[%emt 0:00:02]} Qc7 {[%emt 0:00:57]} 24. Bd2 {[%emt 0:06:10]} Bc8 {[%emt 0:06:29]} (24... Nxd3 $2 25. Ba5 (25. Rxa6 Qe7 $17) 25... Qd7 26. Qxd3 $18) 25. Qe2 {[%emt 0:01:13]} Bb7 {[%emt 0:02:00]} 26. Raa1 {[%emt 0:08:14]} Bh6 {[%emt 0:03:18]} 27. Rf2 {[%emt 0:06:06]} Rbe8 {[%emt 0:07:06]} 28. Qf3 {[%emt 0:01:03]} Qe7 {[%emt 0:04:21]} 29. Qh3 {[%emt 0:01:06]} Bg7 {[%emt 0:07:33]} (29... Nxd3 $15 30. Qxd3 Bxe4 31. Qxe4 Qxe4 32. Bxe4 Rxe4) 30. Ng5 {[%emt 0:01:42][%csl Gg5][%cal Rh3h7]} h6 {[%emt 0:00:08]} 31. Bxb7 {[%emt 0:01:08]} Qxb7 {[%emt 0:00:15]} 32. Bxb4 {[%emt 0:01:03]} Re3 $1 {[%emt 0:02:04]} 33. Rf3 {[%emt 0:03:22]} cxb4 {[%emt 0:02:29]} (33... Qxb4 34. Ne6 Rf6 35. Nxg7 (35. Rxa6 Rxf3 36. Qxf3 Qe1+ 37. Qf1 Qe3+ 38. Qf2 Rxe6 $19) (35. Rxe3 dxe3 36. Nxg7 Qc3 $11) 35... Kxg7 36. Rxe3 dxe3 37. Qxe3) 34. Raf1 {[%emt 0:04:30]} Rxf3 {[%emt 0:01:55]} 35. Rxf3 {[%emt 0:00:16]} Qc6 {[%emt 0:01:13]} (35... a5 $11 {deserves consideration.}) 36. Qe6 $14 {[%emt 0:02:21]} Qxe6 {[%emt 0:02:24]} (36... Rf6 $14 37. Qxc6 Rxc6) 37. Nxe6 {[%emt 0:00:06][%mdl 4096] Endgame. KRB-KRN} Re8 {[%emt 0:00:03]} 38. Nc7 {[%emt 0:01:01][%csl LRa6,LRe8] White is more active.} Re1+ {[%emt 0:00:07]} 39. Rf1 $1 {[%emt 0:01:26]} Re3 {[%emt 0:00:25]} 40. Rd1 {[%emt 0:00:41][%cal Oc4c5]} a5 {[%emt 0:02:36]} (40... Bf8 $16) 41. Nd5 $18 {[%emt 0:16:50]} Re2 {[%emt 0:15:13]} 42. Ra1 {[%emt 0:00:34]} g5 {[%emt 0:00:00]} 43. c5 {[%emt 0:00:00]} ({White should try} 43. Rxa5 $18 {Black must now prevent c5.} gxf4 44. Nxb4 (44. Nxf4 Rb2 $16)) 43... gxf4 $14 {[%emt 0:00:00]} 44. c6 {[%emt 0:00:00][%cal Oc6c7] And now c7! would win.} Be5 {[%emt 0:00:00]} 45. c7 {[%emt 0:00:00]} (45. Rxa5 {keeps more tension.} f3 46. Ra8+ Kg7 47. c7) 45... Bxc7 {[%emt 0:00:00]} 46. Nxc7 {[%emt 0:00:00][%cal Oc7d5] Strongly threatening Nd5! KRN-KR} Rd2 {[%emt 0:00:24]} (46... Rb2 $1 $14) 47. Rxa5 {[%emt 0:00:33]} (47. Ne6 $16 Rxd3 48. Rxa5 (48. Nxf4 Rxb3 49. Rxa5 Rf3 $14)) 47... Rxd3 {[%emt 0:00:13]} 48. Ra7 {[%emt 0:00:08]} Rxb3 {[%emt 0:00:46]} 49. Nd5 {[%emt 0:00:12][%cal Od5f6] Nf6! would kill now.} Kg8 {[%emt 0:01:13]} 50. Nxf4 {[%emt 0:00:04]} Rf3 {[%emt 0:01:15]} 51. Nd5 {[%emt 0:00:19]} b3 {[%emt 0:00:18]} 52. Kg2 {[%emt 0:01:49]} Rd3 {[%emt 0:01:38]} 53. Rb7 {[%emt 0:00:37]} Kf8 {[%emt 0:01:31]} 54. h4 {[%emt 0:02:02][%cal Bh2h4,Bh4h5][%mdl 32]} Ke8 {[%emt 0:00:18]} 55. h5 {[%emt 0:00:25]} Kf8 {[%emt 0:00:24]} 56. Rb8+ {[%emt 0:00:55]} Kf7 {[%emt 0:00:23]} 57. Rb7+ {[%emt 0:00:03]} Kf8 $1 {[%emt 0:00:02]} 58. Kf2 {[%emt 0:01:13]} Rd2+ {[%emt 0:01:41]} 59. Kf3 {[%emt 0:00:12]} Rh2 $2 {[%emt 0:00:06][%mdl 8192]} (59... b2 $14) 60. Nf4 $18 {[%emt 0:00:19]} (60. Rxb3 $2 Rh3+ (60... Rxh5 61. Nf4 $14) 61. Ke4 Rxb3 $19) 60... b2 {[%emt 0:00:14]} 61. Ke4 $2 {[%emt 0:00:47]} (61. Kg4 $1 $18 {and the rest is easy.}) 61... Rd2 $2 {[%emt 0:01:01][%mdl 8192]} (61... Ke8 $16) 62. Nd3 $2 {[%emt 0:00:07]} (62. Ke5 $18) 62... Rh2 $14 {[%emt 0:00:21]} 63. Nf4 $2 {[%emt 0:00:03][%mdl 8192]} (63. Rxb2 Rxh5 64. Rb8+ (64. Kxd4 Ke7 $11) 64... Ke7) (63. Kf5 $14 Rxh5+ 64. Kf6) 63... Rd2 $1 $18 {[%emt 0:00:04]} 64. Ke5 {[%emt 0:00:24]} Kg8 {[%emt 0:01:40]} 65. Rb8+ $2 {[%emt 0:00:43]} (65. Kf5 $1 $18 {[%cal Rf5g6] is the precise move to win. Kg6 would now be deadly.} Rf2 66. Ke4) 65... Kf7 $16 {[%emt 0:00:03]} 66. Rb7+ $2 {[%emt 0:00:02][%mdl 8192]} (66. Rb4 $16) 66... Kg8 $1 $18 {[%emt 0:00:04]} 67. Kf5 {[%emt 0:01:12]} Rf2 {[%emt 0:00:34]} 68. Ke4 {[%emt 0:00:09]} Rd2 {[%emt 0:00:05]} 69. Ke5 $2 {[%emt 0:00:02]} (69. Rb5 Rh2 70. Kxd4) 69... Rf2 $2 {[%emt 0:00:33]} (69... d3 {is tougher.}) 70. Rb6 {[%emt 0:02:33]} Kf7 {[%emt 0:00:33]} 71. Rb5 $2 {[%emt 0:00:03]} (71. Rxh6 $2 b1=Q (71... b1=B 72. Rb6 $11) 72. Rf6+ Kg8 73. Rg6+ Kh7 $19) (71. Nd3 $1 $18 {[%cal Rd3f2]} Rh2 72. Rb7+ (72. Kxd4 Rxh5 73. Rxb2 Rh4+ 74. Ke5 Rh5+ 75. Kf4 Rh1 $14) 72... Ke8 73. Nxb2 (73. Rxb2 Rxh5+ 74. Ke6 Kd8 $14)) 71... Rd2 $16 {[%emt 0:00:27]} 72. Ke4 {[%emt 0:01:09] Hoping for Nd3.} Kf6 {[%emt 0:00:49]} (72... Rh2 $16) 73. Nd3 $18 {[%emt 0:01:17]} Rg2 {[%emt 0:00:38] [#]} 74. Nf4 {[%emt 0:01:26]} (74. Rxb2 Rxb2 75. Nxb2 Kg5 $11) (74. Kxd4 $6 Rg4+ 75. Ke3 Rg5 76. Rb6+ (76. Rxb2 Rxh5 77. Rb7 Rh3+ 78. Ke2 h5 $14) 76... Kf5 $16) (74. Nxb2 Rg4+ 75. Kf3 Rg5 76. Rb6+ Kg7 $18) ({Only move:} 74. Kf3 $1 $18 {[%cal Rf3g2]} Rg1 75. Rxb2) 74... Rd2 $1 $14 {[%emt 0:00:09]} 75. Nd3 {[%emt 0:00:34] Wards off Rf2} (75. Nh3 $14) 75... Rg2 $1 $18 {[%emt 0:00:03] [#]} 76. Kf3 $1 {[%emt 0:00:12] Prevents Rg4.} ({Stronger than} 76. Rxb2 Rxb2 77. Nxb2 Kg5 $11) (76. Kxd4 $6 Rg5 77. Rxb2 Rxh5 $11) (76. Nxb2 $6 Rg4+ 77. Kf3 Rg5 78. Rb6+ Kg7 $14) 76... Rc2 $2 {[%emt 0:02:13]} (76... Rg1 77. Rxb2 Kg5) 77. Nxb2 {[%emt 0:00:13]} (77. Rxb2 Rxb2 78. Nxb2 Kg5 $11) 77... Rc3+ {[%emt 0:00:26]} 78. Ke4 {[%emt 0:00:46]} Re3+ {[%emt 0:00:34]} 79. Kf4 {[%emt 0:00:37]} Rc3 {[%emt 0:00:28]} 80. Rb6+ {[%emt 0:00:21]} Kg7 {[%emt 0:00:01]} 81. Rb5 {[%emt 0:00:10]} Kf6 {[%emt 0:00:14]} 82. Rd5 {[%emt 0:00:17] White is clearly winning.} Rh3 {[%emt 0:00:31]} 83. Kg4 {[%emt 0:00:32]} Rb3 {[%emt 0:00:47]} 84. Nc4 {[%emt 0:00:25]} d3 {[%emt 0:00:31][%cal Bd4d3,Bd3d2][%mdl 32]} 85. Rd6+ {[%emt 0:00:50]} Ke7 {[%emt 0:00:23]} 86. Rd4 {[%emt 0:00:08] Kf5 is the strong threat.} ({And not} 86. Rxh6 Rb4 87. Rh7+ Ke8 88. Rh8+ Kf7 $11) 86... Rb4 {[%emt 0:00:27]} 87. Kf5 {[%emt 0:00:02]} d2 {[%emt 0:00:37]} 88. Re4+ {[%emt 0:00:07] Weighted Error Value: White=0.15 (very precise) /Black=0.24 (precise) .  Loses game:     	---       	Black=2      Missed win:     	White=3     	---        Mistake:       	White=6     	Black=7      Inaccurate:     	White=3     	Black=4      OK:         	White=21    	Black=23     Best:        	White=4     	Black=6      Strong:       	White=2     	Black=6} 1-0

[Event "CIS Master Groups 2024"]
[Site "Vasto"]
[Date "2024.04.10"]
[Round "4.6"]
[White "Genocchio, Daniele"]
[Black "Paltrinieri, Nicholas"]
[Result "0-1"]
[ECO "A04"]
[WhiteElo "2375"]
[BlackElo "2355"]
[Annotator "TA"]
[PlyCount "58"]
[EventDate "2024.04.07"]
[EventType "team-tourn"]
[EventCountry "ITA"]
[SourceTitle "playchess.com"]
[Source "ChessBase"]
[SourceQuality "1"]
[TimeControl "40/5400+30:900+30"]

{[%evp 9,58,45,64,17,23,21,19,20,26,10,33,-15,-16,-24,-25,-10,-31,-45,38,49,47,64,69,-50,-47,-89,-70,-69,-62,-62,-70,-121,-53,-99,-101,-107,-107,-110,-115,-283,-286,-392,-359,-418,-418,-383,-410,-1131,-1136,-1037,-994]} 1. Nf3 {[%emt 0:06:51]} e6 {[%emt 0:00:36]} 2. g3 {[%emt 0:03:22]} f5 {[%emt 0:00:52]} 3. Bg2 {[%emt 0:00:20]} Nf6 {[%emt 0:00:12]} 4. O-O {[%emt 0:00:19]} Nc6 {[%emt 0:01:36]} 5. d4 {[%emt 0:01:23]} Be7 {[%emt 0:01:44]} 6. b3 {[%emt 0:06:57]} (6. c4 $14 {is superior.}) 6... Ne4 $11 {[%emt 0:03:34]} 7. Bb2 {[%emt 0:01:15]} d5 {[%emt 0:00:08]} 8. c4 {[%emt 0:14:53] The position is equal.} h5 {[%emt 0:00:17]} 9. e3 {[%emt 0:14:12]} h4 {[%emt 0:01:21]} 10. Nbd2 {[%emt 0:01:24]} (10. Qe2 $14) 10... hxg3 {[%emt 0:00:07]} 11. hxg3 {[%emt 0:00:33]} Bb4 {[%emt 0:03:51]} (11... Bd6 {seems wilder.} 12. c5 Bf8 13. b4 Nxb4 14. Ne5 Bd7) 12. Nxe4 {[%emt 0:05:20]} dxe4 {[%emt 0:01:07]} 13. Nh4 {[%emt 0:02:24]} Be7 {[%emt 0:08:47]} (13... Rh7 $15 14. a3 Bd6) 14. Ng6 $14 {[%emt 0:00:16]} Rh6 {[%emt 0:00:15]} 15. Nxe7 {[%emt 0:03:23]} Qxe7 {[%emt 0:00:06]} 16. f4 {[%emt 0:03:48]} (16. f3 $14) 16... Bd7 {[%emt 0:02:46]} 17. d5 {[%emt 0:01:06]} Nb4 {[%emt 0:08:47] ...Nd3 would now be deadly.} 18. Ba3 $1 {[%emt 0:00:16][%cal Od5d6] Threatens to win with d6!} a5 {[%emt 0:01:45]} 19. dxe6 {[%emt 0:03:29]} Bxe6 {[%emt 0:04:45]} 20. Rf2 {[%emt 0:04:20] [#]} (20. Bxb4 $15 axb4 21. Qd4) 20... Qc5 {[%emt 0:03:58] Black is more active.} (20... Qf6 $1 $17 {White must now prevent ...Rd8.} 21. Bxb4 axb4) 21. Qd4 {[%emt 0:00:39]} (21. Qe1 $15 {should be considered.}) 21... Qxd4 $17 {[%emt 0:01:26]} 22. exd4 {[%emt 0:00:04]} Rg6 {[%emt 0:04:13]} 23. d5 {[%emt 0:00:39] [#]} Bd7 {[%emt 0:00:25] And now ...Kf7 would win.} 24. Kh2 $2 {[%emt 0:03:16] White does not recover from this.} (24. Bf1 $17) 24... Kf7 $19 {[%emt 0:00:30]} 25. Bh3 {[%emt 0:01:34]} Nd3 {[%emt 0:01:45]} 26. Re2 {[%emt 0:03:01]} Rh8 {[%emt 0:02:53] aiming for ...Rgh6.} 27. Rh1 {[%emt 0:00:28]} c6 {[%emt 0:01:03]} 28. dxc6 {[%emt 0:06:25]} (28. Rd2 $142) 28... Bxc6 {[%emt 0:00:49][%cal Oh8h3] ( -> ...Rxh3+!)} 29. Re3 {[%emt 0:01:03]} Nf2 {[%emt 0:00:46][%csl LRh1,LRh3] Weighted Error Value: White=0.51/Black=0.12 (very precise) .  Loses game:     	White=1     	---        Mistake:       	White=5     	Black=2      Inaccurate:     	White=2     	---        OK:         	White=7     	Black=11     Best:        	White=1     	Black=1      Strong:       	White=1     	---} 0-1

[Event "CIS Master Groups 2024"]
[Site "Vasto"]
[Date "2024.04.10"]
[Round "4.7"]
[White "Di Paolo, Raffaele"]
[Black "Lezzerini, Marco"]
[Result "0-1"]
[ECO "B30"]
[WhiteElo "2290"]
[BlackElo "2110"]
[Annotator "TA"]
[PlyCount "108"]
[EventDate "2024.04.07"]
[EventType "team-tourn"]
[EventCountry "ITA"]
[SourceTitle "playchess.com"]
[Source "ChessBase"]
[SourceQuality "1"]
[TimeControl "40/5400+30:900+30"]

{[%evp 12,108,16,18,14,13,15,14,34,22,13,23,12,20,24,-21,14,-6,7,0,8,0,0,0,0,0,28,31,39,0,0,0,0,0,37,35,37,0,17,14,20,-6,17,19,27,0,0,0,0,0,0,0,-8,-8,-12,-14,0,-19,0,-4,0,0,0,0,0,0,0,0,50,-17,0,-6,-8,-258,-186,-351,-235,-354,-339,-253,-173,-433,-290,-291,-197,-559,-518,-1168,-1317,-2079,-1321,-29956,-29951,-29962,-29968,-4622,-4622,-29985,-29986]} 1. e4 {[%emt 0:00:14]} c5 {[%emt 0:00:16]} 2. Nf3 {[%emt 0:00:07]} e6 {[%emt 0:00:06]} 3. d3 {[%emt 0:00:17]} Nc6 {[%emt 0:00:41]} 4. g3 {[%emt 0:00:23]} Nf6 {[%emt 0:00:37]} 5. Bg2 {[%emt 0:00:22]} d6 {[%emt 0:01:08]} 6. a4 {[%emt 0:02:30] B30: Sicilian: 2...Nc6 3 Bb5, lines without ...g6.} Be7 {[%emt 0:00:19]} 7. O-O {[%emt 0:00:33]} O-O {[%emt 0:00:04]} 8. c3 {[%emt 0:02:34]} Bd7 {[%emt 0:00:51]} 9. Na3 {[%emt 0:01:13]} Rc8 {[%emt 0:01:30]} 10. Re1 {[%emt 0:01:25]} e5 $146 {[%emt 0:02:58]} ({Predecessor:} 10... Qc7 11. Nc4 a6 12. a5 Ne5 13. Nfxe5 dxe5 14. f4 exf4 15. Bxf4 Qd8 16. Nb6 Rc6 {0-1 Adla,D (2383)-Serra Canals,O (2158) Titled Tuesday intern op 14th Nov Early blitz 2023 (7)}) 11. Nc4 {[%emt 0:02:02]} Re8 {[%emt 0:01:37]} 12. Bg5 {[%emt 0:08:31]} Be6 {[%emt 0:04:25]} 13. Qc1 {[%emt 0:10:51]} Ng4 {[%emt 0:11:59]} (13... Nxe4 $5 14. Bxe7 (14. Rxe4 d5 $15) 14... Qxe7 $11) 14. Bd2 {[%emt 0:07:06]} Bxc4 {[%emt 0:07:25]} 15. dxc4 {[%emt 0:00:06]} Na5 {[%emt 0:00:12]} 16. Bh3 {[%emt 0:02:30]} h5 $1 {[%emt 0:00:23]} 17. Qd1 {[%emt 0:02:23]} Nxc4 {[%emt 0:00:30]} 18. Bc1 {[%emt 0:00:57]} Qb6 {[%emt 0:08:06]} 19. Qe2 {[%emt 0:02:43]} Na5 {[%emt 0:01:20]} 20. Nd2 {[%emt 0:01:57]} Rcd8 {[%emt 0:01:23]} 21. Bxg4 {[%emt 0:01:34]} hxg4 {[%emt 0:00:06]} 22. Qxg4 {[%emt 0:00:27]} Nb3 {[%emt 0:09:31]} 23. Nxb3 {[%emt 0:00:58]} Qxb3 {[%emt 0:00:01]} 24. Bh6 {[%emt 0:08:10]} Bf8 {[%emt 0:00:08]} 25. Bg5 {[%emt 0:00:23]} Be7 {[%emt 0:01:41]} 26. h4 {[%emt 0:05:08]} Qe6 {[%emt 0:06:41]} (26... Qxb2 {is interesting.} 27. Bh6 Bf6 28. c4 Qb6) 27. Qxe6 {[%emt 0:04:00]} fxe6 {[%emt 0:00:02]} 28. Bxe7 {[%emt 0:00:19]} Rxe7 {[%emt 0:00:02]} 29. c4 {[%emt 0:00:25]} d5 {[%emt 0:01:29]} 30. exd5 {[%emt 0:03:23]} exd5 {[%emt 0:00:08]} 31. Rad1 {[%emt 0:02:09]} d4 {[%emt 0:02:44]} 32. Re4 {[%emt 0:00:31]} Kf7 {[%emt 0:04:13]} 33. Rde1 {[%emt 0:01:13]} Rde8 {[%emt 0:00:29]} 34. Kg2 {[%emt 0:01:01]} b6 {[%emt 0:01:37]} 35. g4 {[%emt 0:01:03]} a6 {[%emt 0:01:01]} 36. Kg3 {[%emt 0:00:55]} Kf6 {[%emt 0:03:35]} 37. Rd1 {[%emt 0:06:36]} b5 {[%emt 0:06:58]} 38. cxb5 {[%emt 0:04:40]} (38. axb5 axb5 39. cxb5 Rb7 $15) 38... axb5 {[%emt 0:00:07]} 39. Rc1 {[%emt 0:00:41]} Rc7 {[%emt 0:09:32]} (39... bxa4 $11 40. Rxc5 Rd8) 40. f4 {[%emt 0:08:51]} ({White should play} 40. axb5 $14 Rb8 41. Rce1) 40... bxa4 $11 {[%emt 0:06:59]} 41. fxe5+ $1 {[%emt 0:15:18]} Rxe5 {[%emt 0:16:30]} 42. g5+ $2 {[%emt 0:05:01]} (42. Rxd4 $11 cxd4 43. Rxc7) 42... Ke6 $19 {[%emt 0:02:49]} 43. Rxd4 {[%emt 0:01:42]} cxd4 {[%emt 0:00:17]} 44. Rxc7 {[%emt 0:00:07]} d3 {[%emt 0:01:47]} 45. Rc1 {[%emt 0:00:21]} (45. Rxg7 $2 d2 46. Rg6+ Kd7 $19 (46... Kd5 $2 47. Rg7 $19)) 45... Kd5 {[%emt 0:00:00]} 46. Kf2 $2 {[%emt 0:00:00]} (46. Rc7 {was the only defense.}) 46... Re2+ {[%emt 0:00:00]} 47. Kf3 {[%emt 0:00:00]} Rc2 {[%emt 0:01:35]} 48. Rd1 $2 {[%emt 0:00:00] [#]} (48. Rh1) 48... Kc4 $1 $19 {[%emt 0:01:34]} (48... Rxb2 49. Rxd3+ Ke6 50. Rd8 $11) 49. h5 {[%emt 0:00:57]} (49. Ra1 $142 Kb4 (49... Rxb2 50. Rxa4+ Kc3 51. Ra7 $11) (49... Kb3 50. Ra3+ Kxb2 51. Rxa4 $11) 50. Rd1 Rxb2 (50... Kc4 51. Ra1 $17) 51. Rxd3) 49... Rxb2 $19 {[%emt 0:00:17]} 50. h6 {[%emt 0:01:29]} gxh6 {[%emt 0:00:13]} 51. gxh6 {[%emt 0:01:19]} Rh2 {[%emt 0:01:27]} 52. Ke3 {[%emt 0:00:40]} Rh3+ {[%emt 0:00:18]} 53. Ke4 {[%emt 0:00:14]} Kc3 {[%emt 0:01:26]} 54. h7 {[%emt 0:00:58]} d2 {[%emt 0:00:29]} 0-1

[Event "CIS Master Groups 2024"]
[Site "Vasto"]
[Date "2024.04.10"]
[Round "4.9"]
[White "Lazic, Miroljub"]
[Black "Dardha, Daniel"]
[Result "1-0"]
[ECO "D02"]
[WhiteElo "2311"]
[BlackElo "2630"]
[Annotator "TA"]
[PlyCount "112"]
[EventDate "2024.04.07"]
[EventType "team-tourn"]
[EventCountry "ITA"]
[SourceTitle "playchess.com"]
[Source "ChessBase"]
[SourceQuality "1"]
[TimeControl "40/5400+30:900+30"]

{[%evp 31,112,-147,-133,-141,-129,-132,-110,-199,-133,-316,-78,-83,-84,-77,-72,-76,-76,-66,-73,-117,-106,-100,-116,-120,-57,-51,-61,-77,0,0,0,0,0,0,0,0,140,145,159,80,60,43,78,24,28,35,68,87,66,66,61,84,87,47,46,44,44,42,50,72,191,168,286,253,751,770,1566,1542,2631,1845,2439,2466,3820,3494,6048,2621,29973,29972,29982,29983,29982,29983,29983]} 1. Nf3 {[%emt 0:00:10]} d5 {[%emt 0:11:43]} 2. g3 {[%emt 0:00:06]} Nc6 {[%emt 0:00:24]} 3. d4 {[%emt 0:00:15]} Bf5 {[%emt 0:00:10]} 4. Bg2 {[%emt 0:00:30]} Nb4 {[%emt 0:00:26]} 5. Na3 {[%emt 0:00:11]} e6 {[%emt 0:00:05]} 6. c3 {[%emt 0:00:44] D02: 1 d4 d5 2 Nf3 sidelines, including 2...Nf6 3 g3 and 2...Nf6 3 Bf4.} Nc6 {[%emt 0:00:05]} 7. Nb1 {[%emt 0:04:14]} Be7 {[%emt 0:01:44] 7...h6 is becoming the main line.} 8. O-O {[%emt 0:00:48]} Nf6 {[%emt 0:06:04]} 9. Nbd2 {[%emt 0:09:51]} Ne4 {[%emt 0:02:51]} 10. Nxe4 {[%emt 0:13:28]} Bxe4 {[%emt 0:00:09]} 11. Ne1 {[%emt 0:10:38]} Bxg2 {[%emt 0:14:54]} 12. Nxg2 {[%emt 0:00:41]} Qd7 $146 {[%emt 0:05:46]} ({Predecessor:} 12... h5 13. Re1 h4 14. e4 hxg3 15. hxg3 dxe4 16. Qg4 Qd5 17. Qxe4 Qh5 18. Nf4 Qh2+ 19. Kf1 O-O-O 20. Be3 g5 {0-1 Simon del Sol,J (1984)-Lopez Agustench,E (2236) Roncana op-A 12th 2018 (5)}) 13. e4 {[%emt 0:16:58]} dxe4 {[%emt 0:01:48]} 14. Qg4 {[%emt 0:03:50]} e5 {[%emt 0:14:56]} 15. Qxg7 {[%emt 0:01:24]} O-O-O {[%emt 0:04:58]} 16. Be3 {[%emt 0:01:28] [#]} (16. Qxf7 $15 Rhf8 (16... exd4 17. Bf4 $11) 17. Qxh7 Rh8) 16... Qf5 $1 $17 {[%emt 0:05:34]} 17. Qh6 {[%emt 0:06:01]} Rd6 {[%emt 0:01:32]} 18. Qg7 {[%emt 0:01:00]} Rhd8 {[%emt 0:02:29]} 19. Rad1 {[%emt 0:09:33]} (19. b4 $17 {was necessary.}) 19... h5 {[%emt 0:03:20]} (19... exd4 $19 20. Bf4 Rd5) 20. d5 $2 {[%emt 0:01:21] [#]} (20. b4 $17 {keeps fighting.}) 20... Rxd5 $2 {[%emt 0:01:45]} (20... Rg6 $1 $19 {[%cal Rg6g7] is more deadly.} 21. Qh7 Na5 (21... Qf3 22. h4 $11)) 21. Rxd5 $17 {[%emt 0:00:03]} Rxd5 {[%emt 0:00:06]} 22. Bxa7 {[%emt 0:09:37]} Rd2 {[%emt 0:09:03]} ({Reject} 22... Nxa7 23. Ne3 Qe6 24. Nxd5 Qxd5 25. Qh8+ Bd8 26. Qxh5 $11) 23. Be3 {[%emt 0:01:13]} Rxb2 {[%emt 0:00:07]} 24. Qg8+ {[%emt 0:04:48]} Nd8 {[%emt 0:00:32]} 25. Bc1 {[%emt 0:00:04]} Rxa2 {[%emt 0:02:58]} 26. Ne3 {[%emt 0:00:07]} Qg6 {[%emt 0:02:43]} 27. Qh8 {[%emt 0:00:30]} h4 {[%emt 0:04:13]} (27... Bd6 $17 28. Nc4 f6) 28. Nd5 $1 $15 {[%emt 0:00:12]} Bd6 $1 {[%emt 0:01:39]} 29. Qxh4 {[%emt 0:00:14]} Ra1 {[%emt 0:00:56]} (29... f5 $17 30. Ne7+ Bxe7 31. Qxe7 Ne6) 30. Bg5 $11 {[%emt 0:04:09]} Rxf1+ {[%emt 0:00:53]} 31. Kxf1 {[%emt 0:00:02]} e3 $1 {[%emt 0:01:35]} 32. Nxe3 $1 {[%emt 0:00:29]} Ne6 {[%emt 0:00:16]} 33. Be7 {[%emt 0:00:10]} Bxe7 {[%emt 0:00:38]} (33... Qd3+ $11 34. Kg1 Qxc3) 34. Qxe7 $16 {[%emt 0:00:03]} b6 {[%emt 0:00:17]} 35. Qe8+ {[%emt 0:00:18]} ({White should play} 35. h4) 35... Kb7 $16 {[%emt 0:00:11]} 36. Qb5 {[%emt 0:00:08]} Nc5 {[%emt 0:00:32]} 37. h4 {[%emt 0:00:52]} ({White should try} 37. Qc4 $16) 37... f5 $11 {[%emt 0:01:02]} 38. Qe2 {[%emt 0:01:47]} Qc6 {[%emt 0:00:34]} 39. Kg1 $1 {[%emt 0:00:19]} f4 {[%emt 0:00:27]} 40. Ng4 $1 {[%emt 0:00:29]} e4 {[%emt 0:00:32]} 41. gxf4 {[%emt 0:15:22]} Qg6 {[%emt 0:02:05]} 42. Kh2 {[%emt 0:00:00]} Qf5 {[%emt 0:02:58]} 43. Kg3 {[%emt 0:00:00]} Ne6 $1 {[%emt 0:02:55]} 44. Qe3 {[%emt 0:00:00]} Ng7 {[%emt 0:01:27]} 45. f3 {[%emt 0:00:00]} Nh5+ {[%emt 0:01:59]} (45... exf3 $16 46. Qxf3+ (46. Kxf3 Qf7 $16) 46... c6) 46. Kf2 $18 {[%emt 0:00:00]} exf3 {[%emt 0:02:57]} (46... Ka7 {is a better defense.}) 47. Kxf3 $18 {[%emt 0:00:00]} ({Not} 47. Qxf3+ c6 $11) 47... Qb5 $2 {[%emt 0:00:29]} (47... Qd7 48. Qd4 Qxd4 49. cxd4 b5) 48. Qe5 $18 {[%emt 0:00:00]} Qc6+ {[%emt 0:04:05]} 49. Qe4 {[%emt 0:00:00]} b5 {[%emt 0:00:33]} 50. Ne5 {[%emt 0:00:46]} Qxe4+ {[%emt 0:00:04]} 51. Kxe4 {[%emt 0:00:02]} c5 {[%emt 0:00:37]} 52. Kf5 {[%emt 0:00:19]} Ng3+ {[%emt 0:00:53]} 53. Kg6 {[%emt 0:00:24]} Kc7 {[%emt 0:00:26]} 54. h5 {[%emt 0:00:15]} Nxh5 {[%emt 0:00:34]} 55. Kxh5 {[%emt 0:00:04]} Kd6 {[%emt 0:00:05]} 56. Nd3 {[%emt 0:00:41]} Kd5 {[%emt 0:01:26]} 1-0